fUSD/lending_fUSD_20250413
["ID","MTS","AMOUNT","RATE_DAILY","PERIOD"]
[357885511,1744505438467,-551.43,0.00019442,2]
[357885512,1744505438476,-150.0,0.00019452,2]
[357885513,1744505438486,-1593.0,0.00019452,2]
[357885514,1744505438496,-500.0,0.00019452,2]
[357885515,1744505438506,-500.0,0.00019452,2]
[357885516,1744505438516,-500.0,0.00019452,2]
[357885517,1744505438525,-500.0,0.00019452,2]
[357885518,1744505438535,-500.0,0.00019452,2]
[357885519,1744505438544,-546.25,0.00019452,2]
[357885520,1744505438553,-279.72816625,0.00019452,2]
[357885521,1744505438563,-500.0,0.00019452,2]
[357885522,1744505438572,-500.0,0.00019452,2]
[357885523,1744505438582,-500.0,0.00019452,2]
[357885524,1744505438592,-500.0,0.00019452,2]
[357885525,1744505438603,-500.0,0.00019452,2]
[357885526,1744505438614,-500.0,0.00019452,2]
[357885527,1744505438623,-500.0,0.00019452,2]
[357885528,1744505438633,-500.0,0.00019452,2]
[357885529,1744505438643,-500.0,0.00019452,2]
[357885530,1744505438652,-500.0,0.00019452,2]
[357885531,1744505438662,-500.0,0.00019452,2]
[357885532,1744505438671,-500.0,0.00019452,2]
[357885533,1744505438681,-597.37,0.00019452,2]
[357885534,1744505438690,-386.2740139,0.00019452,2]
[357885535,1744505438700,-500.0,0.00019452,2]
[357885536,1744505438709,-500.0,0.00019452,2]
[357885537,1744505438719,-500.0,0.00019452,2]
[357885538,1744505438728,-282.70858316,0.00019452,2]
[357885539,1744505438737,-500.0,0.00019452,2]
[357885540,1744505438746,-500.0,0.00019452,2]
[357885541,1744505438756,-500.0,0.00019452,2]
[357885542,1744505438766,-667.93,0.00019452,2]
[357885543,1744505438775,-500.0,0.00019452,2]
[357885544,1744505438784,-500.0,0.00019452,2]
[357885545,1744505438794,-500.0,0.00019452,2]
[357885546,1744505438803,-500.0,0.00019452,2]
[357885547,1744505438812,-500.0,0.00019452,2]
[357885548,1744505438821,-500.0,0.00019452,2]
[357885549,1744505438831,-500.0,0.00019452,2]
[357885550,1744505438839,-500.0,0.00019452,2]
[357885551,1744505438849,-579.07,0.00019452,2]
[357885552,1744505438858,-500.0,0.00019452,2]
[357885553,1744505438867,-159.00266846,0.00019452,2]
[357885554,1744505438876,-500.0,0.00019452,2]
[357885555,1744505438886,-500.0,0.00019452,2]
[357885556,1744505438896,-500.0,0.00019452,2]
[357885557,1744505438905,-500.0,0.00019452,2]
[357885558,1744505438915,-500.0,0.00019452,2]
[357885559,1744505438924,-500.0,0.00019452,2]
[357885560,1744505438933,-500.0,0.00019452,2]
[357885561,1744505438942,-576.05,0.00019452,2]
[357885562,1744505438951,-500.0,0.00019452,2]
[357885563,1744505438961,-500.0,0.00019452,2]
[357885564,1744505438970,-500.0,0.00019452,2]
[357885565,1744505438979,-500.0,0.00019452,2]
[357885566,1744505438988,-500.0,0.00019452,2]
[357885567,1744505438997,-500.0,0.00019452,2]
[357885568,1744505439006,-500.0,0.00019452,2]
[357885569,1744505439015,-500.0,0.00019452,2]
[357885570,1744505439025,-500.0,0.00019452,2]
[357885571,1744505439034,-500.0,0.00019452,2]
[357885572,1744505439043,-500.0,0.00019452,2]
[357885573,1744505439056,-500.0,0.00019452,2]
[357885574,1744505439065,-500.0,0.00019452,2]
[357885575,1744505439074,-500.0,0.00019452,2]
[357885576,1744505439085,-500.0,0.00019452,2]
[357885577,1744505439094,-500.0,0.00019452,2]
[357885578,1744505439104,-500.0,0.00019452,2]
[357885579,1744505439113,-618.61,0.00019452,2]
[357885580,1744505439122,-500.0,0.00019452,2]
[357885581,1744505439134,-500.0,0.00019452,2]
[357885582,1744505439144,-756.92,0.00019452,2]
[357885583,1744505439153,-500.0,0.00019452,2]
[357885584,1744505439163,-601.67,0.00019452,2]
[357885585,1744505439172,-562.32,0.00019452,2]
[357885586,1744505439181,-500.0,0.00019452,2]
[357885587,1744505439190,-500.0,0.00019452,2]
[357885588,1744505439199,-500.0,0.00019452,2]
[357885589,1744505439208,-609.6,0.00019452,2]
[357885590,1744505439217,-500.0,0.00019452,2]
[357885591,1744505439227,-500.0,0.00019452,2]
[357885592,1744505439236,-500.0,0.00019452,2]
[357885593,1744505439245,-4728.11,0.00019452,2]
[357885594,1744505439254,-1044.91,0.00019452,2]
[357885595,1744505439263,-616.35,0.00019452,2]
[357885596,1744505439272,-7360.69,0.00019452,2]
[357885597,1744505439281,-500.0,0.00019452,2]
[357885598,1744505439290,-500.0,0.00019452,2]
[357885599,1744505439300,-500.0,0.00019452,2]
[357885600,1744505439309,-544.03156115,0.00019452,2]
[357885601,1744505439318,-500.0,0.00019452,2]
[357885602,1744505439327,-500.0,0.00019452,2]
[357885603,1744505439337,-519.31,0.00019452,2]
[357885604,1744505439346,-500.0,0.00019452,2]
[357885605,1744505439355,-53.63985315,0.00019452,2]
[357885606,1744505440640,-1884.33461234,0.00019169,2]
[357885607,1744505440650,-610.98,0.00019178,2]
[357885608,1744505440660,-500.0,0.00019178,2]
[357885609,1744505440669,-446.36014685,0.00019452,2]
[357885610,1744505440678,-500.0,0.00019452,2]
[357885611,1744505440687,-500.0,0.00019452,2]
[357885612,1744505440697,-500.0,0.00019452,2]
[357885613,1744505440707,-1107.86,0.00019452,2]
[357885614,1744505440716,-500.0,0.00019452,2]
[357885615,1744505440727,-500.0,0.00019452,2]
[357885616,1744505440737,-500.0,0.00019452,2]
[357885617,1744505440746,-500.0,0.00019452,2]
[357885618,1744505440756,-500.0,0.00019452,2]
[357885619,1744505440765,-500.0,0.00019452,2]
[357885620,1744505440775,-500.0,0.00019452,2]
[357885621,1744505440784,-500.0,0.00019452,2]
[357885622,1744505440794,-555.91,0.00019452,2]
[357885623,1744505440803,-500.0,0.00019452,2]
[357885624,1744505440813,-500.0,0.00019452,2]
[357885625,1744505440822,-500.0,0.00019452,2]
[357885627,1744505440832,-500.0,0.00019452,2]
[357885628,1744505440841,-500.0,0.00019452,2]
[357885630,1744505440852,-498.00508997,0.00019452,2]
[357885656,1744505444645,-500.0,0.00019178,2]
[357885657,1744505444654,-693.85,0.00019178,2]
[357885658,1744505444663,-500.0,0.00019178,2]
[357885659,1744505444676,-1.99491003,0.00019452,2]
[357885660,1744505444688,-2025.98,0.00019452,2]
[357885661,1744505444701,-500.0,0.00019452,2]
[357885662,1744505444713,-500.0,0.00019452,2]
[357885663,1744505444725,-500.0,0.00019452,2]
[357885664,1744505444735,-500.0,0.00019452,2]
[357885665,1744505444746,-500.0,0.00019452,2]
[357885666,1744505444756,-40297.74,0.00019452,2]
[357885667,1744505444767,-500.0,0.00019452,2]
[357885668,1744505444779,-500.0,0.00019452,2]
[357885669,1744505444790,-500.0,0.00019452,2]
[357885670,1744505444801,-500.0,0.00019452,2]
[357885671,1744505444813,-500.0,0.00019452,2]
[357885672,1744505444828,-837.3,0.00019452,2]
[357885673,1744505444840,-500.0,0.00019452,2]
[357885674,1744505444852,-500.0,0.00019452,2]
[357885675,1744505444864,-500.0,0.00019452,2]
[357885676,1744505444876,-500.0,0.00019452,2]
[357885677,1744505444887,-524.29,0.00019452,2]
[357885678,1744505444899,-500.0,0.00019452,2]
[357885679,1744505444910,-500.0,0.00019452,2]
[357885680,1744505444920,-1461.15,0.00019452,2]
[357885681,1744505444930,-1268.59,0.00019452,2]
[357885682,1744505444940,-500.0,0.00019452,2]
[357885683,1744505444952,-2234.53,0.00019452,2]
[357885684,1744505444964,-500.0,0.00019452,2]
[357885685,1744505444976,-500.0,0.00019452,2]
[357885686,1744505444987,-692.6,0.00019452,2]
[357885687,1744505444998,-500.0,0.00019452,2]
[357885688,1744505445010,-157.99953462,0.00019452,2]
[357885689,1744505445021,-500.0,0.00019452,2]
[357885690,1744505445032,-530.08,0.00019452,2]
[357885691,1744505445043,-500.0,0.00019452,2]
[357885692,1744505445058,-4173.01,0.00019452,2]
[357885693,1744505445070,-500.0,0.00019452,2]
[357885694,1744505445081,-500.0,0.00019452,2]
[357885695,1744505445094,-801.15,0.00019452,2]
[357885696,1744505445104,-522.87,0.00019452,2]
[357885697,1744505445116,-500.0,0.00019452,2]
[357885698,1744505445130,-500.0,0.00019452,2]
[357885699,1744505445142,-500.0,0.00019452,2]
[357885700,1744505445153,-500.0,0.00019452,2]
[357885701,1744505445165,-1928.52,0.00019452,2]
[357885702,1744505445176,-500.0,0.00019452,2]
[357885703,1744505445186,-500.0,0.00019452,2]
[357885704,1744505445199,-637.99,0.00019452,2]
[357885705,1744505445210,-500.0,0.00019452,2]
[357885706,1744505445221,-500.0,0.00019452,2]
[357885707,1744505445233,-600.36,0.00019452,2]
[357885708,1744505445244,-610.98,0.00019452,2]
[357885709,1744505445255,-500.0,0.00019452,2]
[357885710,1744505445267,-500.0,0.00019452,2]
[357885711,1744505445279,-693.85,0.00019452,2]
[357885712,1744505445290,-500.0,0.00019473,2]
[357885713,1744505445301,-452.18892402,0.00019474,2]
[357885714,1744505445313,-452.18892402,0.00019535,2]
[357885715,1744505445324,-452.18892402,0.00019596,2]
[357885716,1744505445335,-452.18892402,0.00019656,2]
[357885717,1744505445345,-3615.33421496,0.00019667,2]
[357885718,1744505445355,-890.18,0.00019716,2]
[357885719,1744505445366,-452.18892402,0.00019717,2]
[357885720,1744505445376,-152.0,0.00019725,2]
[357885721,1744505445388,-258.932,0.00019725,2]
[357885722,1744505445401,-150.0,0.00019726,2]
[357885723,1744505445414,-1593.0,0.00019726,2]
[357885724,1744505445425,-500.0,0.00019726,2]
[357885725,1744505445435,-500.0,0.00019726,2]
[357885726,1744505445444,-500.0,0.00019726,2]
[357885727,1744505445454,-500.0,0.00019726,2]
[357885728,1744505445464,-393.59512954,0.00019726,2]
[357885729,1744505445474,-546.25,0.00019726,2]
[357885730,1744505445484,-500.0,0.00019726,2]
[357885731,1744505445496,-500.0,0.00019726,2]
[357885732,1744505445507,-500.0,0.00019726,2]
[357885733,1744505445519,-500.0,0.00019726,2]
[357885734,1744505445529,-500.0,0.00019726,2]
[357885735,1744505445539,-500.0,0.00019726,2]
[357885736,1744505445549,-500.0,0.00019726,2]
[357885737,1744505445559,-500.0,0.00019726,2]
[357885738,1744505445569,-500.0,0.00019726,2]
[357885739,1744505445578,-500.0,0.00019726,2]
[357885740,1744505445588,-500.0,0.00019726,2]
[357885741,1744505445599,-597.37,0.00019726,2]
[357885742,1744505445609,-500.0,0.00019726,2]
[357885743,1744505445619,-500.0,0.00019726,2]
[357885744,1744505445629,-500.0,0.00019726,2]
[357885745,1744505445642,-500.0,0.00019726,2]
[357885746,1744505445653,-500.0,0.00019726,2]
[357885747,1744505445664,-500.0,0.00019726,2]
[357885748,1744505445675,-667.93,0.00019726,2]
[357885749,1744505445685,-500.0,0.00019726,2]
[357885750,1744505445696,-341.87501259,0.00019726,2]
[357885751,1744505445706,-151.0,0.00019726,2]
[357885752,1744505445717,-500.0,0.00019726,2]
[357885753,1744505445727,-500.0,0.00019726,2]
[357885754,1744505445738,-500.0,0.00019726,2]
[357885755,1744505445748,-500.0,0.00019726,2]
[357885756,1744505445759,-500.0,0.00019726,2]
[357885757,1744505445769,-500.0,0.00019726,2]
[357885758,1744505445780,-579.07,0.00019726,2]
[357885759,1744505445790,-500.0,0.00019726,2]
[357885760,1744505445801,-500.0,0.00019726,2]
[357885761,1744505445811,-500.0,0.00019726,2]
[357885762,1744505445822,-500.0,0.00019726,2]
[357885763,1744505445832,-500.0,0.00019726,2]
[357885764,1744505445842,-500.0,0.00019726,2]
[357885765,1744505445852,-500.0,0.00019726,2]
[357885766,1744505445863,-500.0,0.00019726,2]
[357885767,1744505445873,-576.05,0.00019726,2]
[357885768,1744505445884,-500.0,0.00019726,2]
[357885769,1744505445895,-500.0,0.00019726,2]
[357885770,1744505445905,-500.0,0.00019726,2]
[357885771,1744505445916,-500.0,0.00019726,2]
[357885772,1744505445926,-500.0,0.00019726,2]
[357885773,1744505445937,-500.0,0.00019726,2]
[357885774,1744505445947,-500.0,0.00019726,2]
[357885775,1744505445958,-500.0,0.00019726,2]
[357885776,1744505445968,-500.0,0.00019726,2]
[357885778,1744505445978,-500.0,0.00019726,2]
[357885779,1744505445989,-500.0,0.00019726,2]
[357885781,1744505445999,-500.0,0.00019726,2]
[357885782,1744505446010,-151.0,0.00019726,2]
[357885783,1744505446020,-500.0,0.00019726,2]
[357885784,1744505446031,-500.0,0.00019726,2]
[357885785,1744505446040,-618.61,0.00019726,2]
[357885786,1744505446054,-500.0,0.00019726,2]
[357885787,1744505446064,-500.0,0.00019726,2]
[357885788,1744505446075,-500.0,0.00019726,2]
[357885789,1744505446087,-601.67,0.00019726,2]
[357885790,1744505446098,-562.32,0.00019726,2]
[357885791,1744505446108,-151.0,0.00019726,2]
[357885792,1744505446118,-500.0,0.00019726,2]
[357885793,1744505446129,-500.0,0.00019726,2]
[357885794,1744505446139,-500.0,0.00019726,2]
[357885795,1744505446150,-609.6,0.00019726,2]
[357885796,1744505446161,-500.0,0.00019726,2]
[357885797,1744505446171,-500.0,0.00019726,2]
[357885798,1744505446182,-500.0,0.00019726,2]
[357885799,1744505446194,-4728.11,0.00019726,2]
[357885800,1744505446205,-1044.91,0.00019726,2]
[357885801,1744505446215,-616.35,0.00019726,2]
[357885802,1744505446226,-7360.69,0.00019726,2]
[357885803,1744505446237,-500.0,0.00019726,2]
[357885804,1744505446248,-500.0,0.00019726,2]
[357885805,1744505446259,-500.0,0.00019726,2]
[357885806,1744505446270,-500.0,0.00019726,2]
[357885807,1744505446281,-500.0,0.00019726,2]
[357885808,1744505446291,-519.31,0.00019726,2]
[357885809,1744505446302,-500.0,0.00019726,2]
[357885810,1744505446313,-500.0,0.00019726,2]
[357885811,1744505446324,-500.0,0.00019726,2]
[357885812,1744505446334,-500.0,0.00019726,2]
[357885813,1744505446345,-500.0,0.00019726,2]
[357885814,1744505446356,-1107.86,0.00019726,2]
[357885815,1744505446367,-500.0,0.00019726,2]
[357885816,1744505446377,-500.0,0.00019726,2]
[357885817,1744505446388,-500.0,0.00019726,2]
[357885818,1744505446399,-500.0,0.00019726,2]
[357885819,1744505446410,-500.0,0.00019726,2]
[357885820,1744505446421,-390.663253,0.00019726,2]
[357885821,1744505446431,-500.0,0.00019726,2]
[357885822,1744505446442,-390.663253,0.00019726,2]
[357885823,1744505446453,-647.27,0.00019726,2]
[357885824,1744505446464,-500.0,0.00019726,2]
[357885825,1744505446475,-555.91,0.00019726,2]
[357885826,1744505446486,-500.0,0.00019726,2]
[357885827,1744505446497,-500.0,0.00019726,2]
[357885828,1744505446507,-151.0,0.00019726,2]
[357885829,1744505446518,-151.0,0.00019726,2]
[357885830,1744505446529,-500.0,0.00019726,2]
[357885831,1744505446540,-500.0,0.00019726,2]
[357885832,1744505446552,-500.0,0.00019726,2]
[357885833,1744505446563,-500.0,0.00019726,2]
[357885834,1744505446575,-2025.98,0.00019726,2]
[357885835,1744505446586,-500.0,0.00019726,2]
[357885836,1744505446596,-500.0,0.00019726,2]
[357885837,1744505446608,-500.0,0.00019726,2]
[357885838,1744505446619,-500.0,0.00019726,2]
[357885839,1744505446630,-500.0,0.00019726,2]
[357885841,1744505446641,-37244.54883264,0.00019726,2]
[357885842,1744505446885,-510.00939672,0.00019261,2]
[357885843,1744505446912,-1374.32521562,0.00019261,2]
[357885844,1744505446923,-500.0,0.00019452,2]
[357885845,1744505446934,-3053.19116736,0.00019726,2]
[357885846,1744505446944,-500.0,0.00019726,2]
[357885847,1744505446954,-221.102977,0.00019726,2]
[357885848,1744505446963,-221.102977,0.00019726,2]
[357885849,1744505446973,-221.102977,0.00019726,2]
[357885850,1744505446982,-221.102977,0.00019726,2]
[357885851,1744505446992,-500.0,0.00019726,2]
[357885852,1744505447001,-500.0,0.00019726,2]
[357885853,1744505447011,-500.0,0.00019726,2]
[357885854,1744505447020,-500.0,0.00019726,2]
[357885855,1744505447030,-837.3,0.00019726,2]
[357885856,1744505447039,-500.0,0.00019726,2]
[357885857,1744505447051,-500.0,0.00019726,2]
[357885858,1744505447061,-500.0,0.00019726,2]
[357885859,1744505447070,-165.86205902,0.00019726,2]
[357885861,1744505447647,-334.13794098,0.00019726,2]
[357885862,1744505447657,-524.29,0.00019726,2]
[357885863,1744505447667,-500.0,0.00019726,2]
[357885864,1744505447676,-500.0,0.00019726,2]
[357885865,1744505447686,-1461.15,0.00019726,2]
[357885866,1744505447695,-1268.59,0.00019726,2]
[357885867,1744505447705,-500.0,0.00019726,2]
[357885868,1744505447714,-2234.53,0.00019726,2]
[357885869,1744505447724,-500.0,0.00019726,2]
[357885870,1744505447733,-500.0,0.00019726,2]
[357885871,1744505447743,-692.6,0.00019726,2]
[357885872,1744505447752,-154.66834153,0.00019726,2]
[357885873,1744505447764,-345.33165847,0.00019726,2]
[357885874,1744505447774,-346.3788422,0.00019726,2]
[357885875,1744505447784,-530.08,0.00019726,2]
[357885876,1744505447800,-500.0,0.00019726,2]
[357885877,1744505447812,-4173.01,0.00019726,2]
[357885878,1744505447822,-500.0,0.00019726,2]
[357885879,1744505447832,-500.0,0.00019726,2]
[357885880,1744505447843,-801.15,0.00019726,2]
[357885881,1744505447855,-522.87,0.00019726,2]
[357885882,1744505447865,-500.0,0.00019726,2]
[357885883,1744505447875,-500.0,0.00019726,2]
[357885884,1744505447890,-500.0,0.00019726,2]
[357885885,1744505447904,-500.0,0.00019726,2]
[357885886,1744505447914,-1928.52,0.00019726,2]
[357885887,1744505447924,-500.0,0.00019726,2]
[357885888,1744505447936,-500.0,0.00019726,2]
[357885889,1744505447946,-637.99,0.00019726,2]
[357885890,1744505447956,-500.0,0.00019726,2]
[357885891,1744505447965,-500.0,0.00019726,2]
[357885892,1744505447975,-600.36,0.00019726,2]
[357885893,1744505447984,-281.279536,0.00019726,2]
[357885894,1744505447994,-299.202396,0.00019726,2]
[357885895,1744505448004,-610.98,0.00019726,2]
[357885896,1744505448017,-500.0,0.00019726,2]
[357885897,1744505448026,-500.0,0.00019726,2]
[357885898,1744505448036,-693.85,0.00019726,2]
[357885899,1744505448046,-500.0,0.00019726,2]
[357885900,1744505448060,-409.10028416,0.00019773,2]
[357885901,1744505448069,-500.0,0.00019773,2]
[357885902,1744505448080,-452.18892402,0.00019778,2]
[357885903,1744505448091,-1185.578,0.000198,2]
[357885904,1744505448101,-151.0,0.00019809,2]
[357885905,1744505448110,-14719.03081233,0.0001981,2]
[357885906,1744505448119,-390.663253,0.0001981,2]
[357885907,1744505448132,-390.663253,0.0001981,2]
[357885908,1744505448141,-452.18892402,0.00019839,2]
[357885909,1744505448154,-200.0,0.0001984,2]
[357885910,1744505448164,-256.71148408,0.00019863,2]
[357885911,1744505448173,-3945.6751,0.00019886,2]
[357885912,1744505448183,-369.53994002,0.000199,2]
[357885913,1744505448193,-452.18892402,0.000199,2]
[357885914,1744505448203,-558.03986844,0.000199,2]
[357885915,1744505448212,-163.0694071,0.000199,2]
[357885916,1744505448222,-513.82178074,0.00019973,2]
[357885917,1744505448231,-500.0,0.00019973,2]
[357885918,1744505448241,-151.0,0.00019986,2]
[357885919,1744505448251,-151.0,0.00019986,2]
[357885920,1744505448260,-150.7464803,0.00019986,2]
[357885921,1744505448270,-5315.1850878,0.00019986,2]
[357885922,1744505448280,-151.0,0.00019986,2]
[357885923,1744505448289,-766.9467617,0.00019986,2]
[357885924,1744505448299,-151.0,0.00019986,2]
[357885925,1744505448309,-2222.8195597,0.00019986,2]
[357885926,1744505448318,-6940.1353368,0.00019986,2]
[357885927,1744505448328,-151.0,0.00019986,2]
[357885928,1744505448338,-221.102977,0.00019986,2]
[357885929,1744505448348,-221.102977,0.00019986,2]
[357885930,1744505448358,-45273.0657539,0.00019986,2]
[357885931,1744505448367,-1552.5325207,0.00019986,2]
[357885932,1744505448378,-270.6223583,0.0001999,2]
[357885933,1744505448387,-669.56734715,0.0001999,2]
[357885934,1744505448397,-669.56734715,0.0001999,2]
[357885935,1744505448406,-669.56734715,0.0001999,2]
[357885936,1744505448416,-300.0,0.00019999,2]
[357885937,1744505448425,-3252.07776302,0.00019999,2]
[357885938,1744505448435,-1000.0,0.00019999,2]
[357885939,1744505448445,-150.0,0.00019999,2]
[357885940,1744505448454,-150.0,0.00019999,2]
[357885941,1744505448464,-150.0,0.00019999,2]
[357885942,1744505448474,-150.0,0.00019999,2]
[357885943,1744505448483,-150.0,0.00019999,2]
[357885944,1744505448493,-150.0,0.00019999,2]
[357885945,1744505448502,-195.48616048,0.00019999,2]
[357885946,1744505448512,-1498.0,0.0002,2]
[357885947,1744505448521,-85529.40995019,0.0002,2]
[357885948,1744505448531,-205.58212712,0.0002,2]
[357885949,1744505448540,-1378.53419737,0.0002,2]
[357885950,1744505448550,-150.0,0.0002,2]
[357885951,1744505448559,-1593.0,0.0002,2]
[357885952,1744505448569,-500.0,0.0002,2]
[357885953,1744505448578,-49364.82763923,0.0002,2]
[357885954,1744505448591,-428.97934386,0.0002,2]
[357885955,1744505448614,-33905.04089612,0.0002,2]
[357885957,1744505492719,151.602557,0.00019999,3]
[357885958,1744505493001,151.602557,0.0002,5]
[357885959,1744505493775,151.602557,0.0003,31]
[357885961,1744505534735,798.55,0.00017441,2]
[357885963,1744505574406,1419.102536,0.0003,30]
[357885964,1744505577665,1419.102536,0.0002,4]
[357885965,1744505579383,1419.102536,0.00019999,3]
[357885966,1744505579683,1419.102536,0.00019997,3]
[357885967,1744505580131,1419.102536,0.00019994,3]
[357885968,1744505580425,1419.102536,0.00019992,3]
[357885969,1744505580711,1419.102536,0.0001999,3]
[357885970,1744505580997,1419.102536,0.0002,5]
[357885971,1744505581593,1419.102536,0.00019863,5]
[357885972,1744505582300,1419.102536,0.00019726,5]
[357885973,1744505582585,1419.102536,0.00019588,5]
[357885974,1744505583064,1419.102536,0.00019451,5]
[357885975,1744505583159,1419.102536,0.0003,31]
[357885976,1744505583447,1419.102536,0.0003,31]
[357885977,1744505583726,1419.102536,0.0003,31]
[357885978,1744505584025,1419.102536,0.0003,31]
[357885979,1744505584322,1419.102536,0.0003,31]
[357885980,1744505587583,792.249938,0.0003,30]
[357885981,1744505594326,792.249938,0.0002,4]
[357885982,1744505596186,792.249938,0.00019999,3]
[357885983,1744505596483,792.249938,0.00019997,3]
[357885984,1744505596962,792.249938,0.00019994,3]
[357885985,1744505597251,792.249938,0.00019992,3]
[357885986,1744505597549,792.249938,0.0001999,3]
[357885987,1744505597840,792.249938,0.0002,5]
[357885988,1744505598133,792.249938,0.00019863,5]
[357885989,1744505598429,792.249938,0.00019726,5]
[357885990,1744505598724,792.249938,0.00019588,5]
[357885991,1744505599032,792.249938,0.00019451,5]
[357885992,1744505599173,151.013746,0.00019999,3]
[357885993,1744505599335,792.249938,0.0003,31]
[357885994,1744505599460,151.013746,0.00019997,3]
[357885995,1744505599618,792.249938,0.0003,31]
[357885996,1744505599766,151.013746,0.0002,5]
[357885997,1744505599907,792.249938,0.0003,31]
[357885998,1744505600038,151.013746,0.0003,31]
[357885999,1744505600192,792.249938,0.0003,31]
[357886000,1744505600521,792.249938,0.0003,31]
[357886001,1744505643331,150.0,0.00021979,30]
[357886002,1744505646576,150.0,0.00021979,30]
[357886003,1744505648058,150.0,0.00021979,30]
[357886004,1744505649924,150.0,0.00021979,30]
[357886005,1744505653953,473.92904283,0.00021979,30]
[357886006,1744505657217,427.4313616,0.00021979,30]
[357886007,1744505658689,5837.91579857,0.00021979,30]
[357886008,1744505660522,302.5467335,0.00021979,30]
[357886009,1744505824484,629.97,0.00019452,5]
[357886010,1744505825830,150.0,0.00021979,30]
[357886011,1744505826634,150.0,0.00021979,30]
[357886012,1744505828133,150.0,0.00021979,30]
[357886013,1744505836477,311.94508928,0.00021979,30]
[357886014,1744505837249,4640.33263886,0.00021979,30]
[357886015,1744505838516,212.0373868,0.00021979,30]
[357886016,1744506005999,150.0,0.00021979,30]
[357886017,1744506006904,150.0,0.00021979,30]
[357886018,1744506008286,150.0,0.00021979,30]
[357886019,1744506017512,3682.26611109,0.00021979,30]
[357886020,1744506018726,219.55607142,0.00021979,30]
[357886021,1744506018901,173.6137242,0.00021979,30]
[357886022,1744506102263,607.08,0.00017689,2]
[357886023,1744506185246,295.64485714,0.00021979,30]
[357886024,1744506186831,150.0,0.00021979,30]
[357886025,1744506197450,2915.81288887,0.00021979,30]
[357886026,1744506281502,150.0,0.00018582,7]
[357886027,1744506351389,555.53,0.00018582,7]
[357886028,1744506365225,176.8870893,0.00021979,30]
[357886029,1744506366708,150.0,0.00021979,30]
[357886030,1744506377896,2302.6503111,0.00021979,30]
[357886031,1744506545708,150.0,0.00021979,30]
[357886032,1744506556360,1800.65359642,0.00021979,30]
[357886033,1744506588145,342.30344987,0.00016513,2]
[357886034,1744506588170,951.87655013,0.00016513,2]
[357886049,1744506632486,-1333.40000006,0.00018591,2]
[357886050,1744506632546,-855.70485,0.00018591,2]
[357886058,1744506638372,-33087.76514994,0.00018591,2]
[357886059,1744506638382,-201.21,0.00018599,2]
[357886060,1744506638392,-152.38,0.00018626,2]
[357886061,1744506638401,-1294.18,0.00018777,2]
[357886062,1744506638410,-1000.0,0.00018801,2]
[357886063,1744506638419,-250.0,0.00019,2]
[357886064,1744506638428,-1507.46768989,0.00019078,2]
[357886065,1744506638662,-162.55,0.00019155,2]